bitfinex/quotes_ETHUSD_20240601
["timestamp","ask_amount","ask_price","bid_price","bid_amount"]
[1717278882295,7.32,3811.9,3811.6,3.10764807]
[1717278882497,7.32,3811.9,3811.8,0.704]
[1717278882817,2.62328,3812.1,3811.8,0.704]
[1717278883014,2.62328,3812.1,3812.0,0.704]
[1717278883190,2.62342,3811.9,3811.8,0.704]
[1717278888493,2.62315,3812.2,3811.8,0.704]
[1717278888695,2.62315,3812.2,3812.0,0.704]
[1717278889110,4.865465,3812.2,3811.8,0.704]
[1717278892149,2.62315,3812.2,3811.9,0.04912565]
[1717278892362,2.62315,3812.2,3811.7,0.704]
[1717278892534,2.62315,3812.2,3812.0,0.04911593]
[1717278892850,2.62315,3812.2,3811.8,0.704]
[1717278893210,2.62315,3812.2,3811.9,0.04912565]
[1717278893624,2.62315,3812.2,3811.8,0.704]
[1717278893947,2.3555,3812.1,3811.8,0.704]
[1717278894249,2.3555,3812.1,3811.9,0.04912565]
[1717278894619,2.62315,3812.2,3811.8,0.704]
[1717278894914,2.62315,3812.2,3812.0,0.704]
[1717278896143,2.62315,3812.2,3811.8,0.704]
[1717278896444,2.62315,3812.2,3812.1,0.04908168]
[1717278896627,2.62315,3812.2,3811.8,0.704]
[1717278896949,2.62315,3812.2,3811.9,0.04910112]
[1717278897244,2.62315,3812.2,3811.8,0.704]
[1717278897548,2.62315,3812.2,3811.9,0.04910112]
[1717278897753,2.62315,3812.2,3811.8,0.704]
[1717278897932,2.62315,3812.2,3812.0,0.0490914]
[1717278898134,2.62315,3812.2,3812.0,0.704]
[1717278898956,2.62315,3812.2,3812.1,0.04908168]
[1717278900944,7.32,3812.3,3812.1,0.04908168]
[1717278901461,7.32,3812.3,3812.2,0.704]
[1717278901758,7.32,3812.3,3812.2,0.75307197]
[1717278902395,7.32,3812.3,3812.2,0.04907197]
[1717278903324,7.32,3812.3,3812.2,2.66241417]
[1717278903531,7.32,3812.7,3812.2,2.66241417]
[1717278903715,0.0254717,3813.8,3812.6,0.704]
[1717278903915,0.0254717,3813.8,3813.7,0.704]
[1717278904323,0.0254717,3813.8,3813.7,0.7525859]
[1717278904848,0.0254717,3813.8,3813.7,3.0282859]
[1717278925286,0.0254717,3813.8,3813.7,0.7525859]
[1717278928705,0.0254717,3813.8,3813.7,1.3025859]
[1717278928991,0.0254717,3813.8,3813.7,1.97415917]
[1717278929496,0.0254717,3813.8,3813.7,1.97415902]
[1717278930491,0.0254717,3813.8,3813.7,1.92172949]
[1717278931893,0.0254717,3813.8,3813.7,1.95328535]
[1717278933719,0.0254717,3813.8,3813.7,1.24928535]
[1717278933888,0.0254717,3813.8,3813.7,1.95328535]
[1717278950163,0.0254717,3813.8,3813.7,0.69928535]
[1717278950309,0.0254717,3813.8,3813.7,1.40328535]
[1717278993897,0.0254717,3813.8,3813.7,0.69928535]
[1717278994103,0.0254717,3813.8,3813.7,1.40328535]
[1717278998031,2.4203,3814.5,3813.7,4.94994927]
[1717278998335,2.4203,3814.5,3814.4,0.704]
[1717278998706,2.4203,3814.5,3814.4,0.78296964]
[1717278999046,2.4203,3814.5,3814.4,3.40460964]
[1717279001837,2.3042,3815.3,3814.4,3.40460964]
[1717279002135,2.3042,3815.3,3815.2,0.704]
[1717279002728,2.3042,3815.3,3815.2,0.78281473]
[1717279009414,2.3042,3815.8,3815.2,0.78281473]
[1717279009752,2.3042,3815.8,3815.6,0.704]
[1717279012215,2.3042,3815.8,3815.7,0.07850472]
[1717279022950,4.89948,3816.1,3815.7,0.07850472]
[1717279023147,4.89948,3816.1,3816.0,0.704]
[1717279023631,2.62048,3816.1,3816.0,0.704]
[1717279023837,2.62048,3816.1,3816.0,0.78233531]
[1717279025349,2.279,3816.3,3816.0,0.78233531]
[1717279025684,2.279,3816.3,3816.2,0.704]
[1717279029445,2.279,3816.3,3816.2,0.684]
[1717279029669,2.279,3816.3,3816.2,0.76231419]
[1717279029857,2.279,3816.3,3816.2,0.07831419]
[1717279030051,2.279,3816.3,3816.2,0.704]
[1717279030372,2.279,3816.3,3816.2,0.78231419]
[1717279030572,7.32,3816.8,3816.3,2.3399]
[1717279030891,7.32,3816.8,3816.7,0.704]
[1717279031039,2.61978,3817.2,3816.7,0.704]
[1717279031239,3.0,3817.1,3816.3,2.3399]
[1717279031441,3.0,3817.1,3817.0,0.704]
[1717279031642,2.61978,3817.2,3817.0,0.704]
[1717279031873,0.489878,3817.1,3817.0,0.704]
[1717279032081,2.279,3817.3,3817.0,0.704]
[1717279032241,2.279,3817.3,3817.2,0.704]
[1717279033783,7.32,3817.5,3817.2,0.704]
[1717279034005,7.32,3817.5,3817.4,0.704]
[1717279035365,2.61951,3817.6,3817.4,0.704]
[1717279035576,0.503421,3817.5,3817.4,0.704]
[1717279038994,0.503421,3817.5,3816.8,2.4098]
[1717279039193,0.503421,3817.5,3817.4,0.704]
[1717279039796,0.503421,3817.5,3817.4,0.78159085]
[1717279050750,2.61951,3817.6,3817.4,0.78159085]
[1717279056172,2.61951,3817.6,3817.4,0.07759085]
[1717279056486,2.61951,3817.6,3817.5,0.704]
[1717279056654,2.61951,3817.6,3817.5,0.78091659]
[1717279060685,7.32,3818.0,3817.5,0.78091659]
[1717279060866,7.32,3818.0,3817.9,0.704]
[1717279061267,7.32,3818.0,3817.9,0.78087439]
[1717279061661,2.61902,3818.3,3817.9,0.78087439]
[1717279061862,2.61902,3818.3,3818.1,0.704]
[1717279062188,3.0,3818.2,3818.1,0.704]
[1717279062586,3.0,3818.2,3818.1,0.78085023]
[1717279072183,2.61902,3818.3,3818.1,0.78085023]
[1717279072574,2.61902,3818.3,3818.1,0.704]
[1717279074003,2.61902,3818.3,3818.2,0.07669295]
[1717279076428,2.61902,3818.3,3818.2,0.78069295]
[1717279076620,2.61902,3818.3,3818.2,0.704]
[1717279076797,2.61902,3818.3,3818.2,0.78055537]
[1717279080702,2.61902,3818.3,3818.2,0.07655537]
[1717279081024,2.61902,3818.3,3818.2,0.704]
[1717279081227,2.61902,3818.3,3818.2,0.77888871]
[1717279081401,7.95297,3818.6,3818.2,0.77888871]
[1717279081737,7.95297,3818.6,3818.2,0.704]
[1717279082033,0.02,3818.3,3818.2,0.704]
[1717279084846,0.02,3818.3,3817.6,4.89569]
[1717279085028,0.02,3818.3,3818.2,0.704]
[1717279086779,0.02,3818.3,3818.2,2.9803]
[1717279087142,0.02,3818.3,3818.2,3.05514286]
[1717279087560,0.02,3818.3,3818.2,2.35114286]
[1717279087757,0.02,3818.3,3818.2,3.05514286]
[1717279087926,0.02,3818.3,3818.2,3.62258115]
[1717279090268,0.02,3818.3,3818.2,2.91858115]
[1717279090766,0.02,3818.3,3818.2,3.62258115]
[1717279096260,0.02,3818.3,3818.2,2.91858115]
[1717279096573,0.02,3818.3,3818.2,3.62258115]
[1717279099680,0.02,3818.3,3818.2,3.05514286]
[1717279108331,0.02,3818.3,3818.2,2.35114286]
[1717279108531,0.02,3818.3,3818.2,3.05514286]
[1717279110273,0.02,3818.3,3818.2,0.77884286]
[1717279111916,0.02,3818.3,3818.2,0.07484286]
[1717279112107,0.02,3818.3,3818.2,1.27774115]
[1717279114742,0.02,3818.3,3818.2,0.57374115]
[1717279114906,0.02,3818.3,3818.2,1.27774115]
[1717279117649,0.02,3818.3,3818.2,0.57374115]
[1717279117846,0.02,3818.3,3818.2,0.77884286]
[1717279132570,0.02,3818.3,3818.2,0.07484286]
[1717279132757,0.02,3818.3,3818.2,0.77884286]
[1717279132962,0.02,3818.3,3818.2,0.704]
[1717279133163,0.02,3818.3,3818.2,0.77569903]
[1717279133369,0.02,3818.3,3818.2,1.11518693]
[1717279143425,2.61864,3818.8,3818.2,0.77569903]
[1717279143589,2.3871,3818.7,3818.6,0.704]
[1717279143790,2.3871,3818.7,3818.6,0.77532589]
[1717279144333,2.3871,3818.7,3818.6,0.07132589]
[1717279144621,2.3871,3818.7,3817.2,2.92872666]
[1717279144622,2.3871,3818.2,3817.2,0.28311993]
[1717279144822,2.3871,3818.2,3816.9,0.28316084]
[1717279145128,2.3871,3817.3,3816.1,0.28316084]
[1717279145287,2.3871,3817.3,3816.8,0.704]
[1717279145487,2.3871,3817.3,3816.0,2.6205]
[1717279145698,2.3871,3817.3,3816.8,0.704]
[1717279146097,2.61975,3817.2,3816.8,0.704]
[1717279146515,2.61975,3817.2,3816.0,2.6205]
[1717279146813,2.61975,3817.2,3816.8,0.704]
[1717279148023,2.61998,3816.9,3816.0,2.6205]
[1717279148250,2.61998,3816.9,3816.8,0.704]
[1717279148973,2.61998,3816.9,3816.0,2.6205]
[1717279149150,2.61998,3816.9,3816.8,0.704]
[1717279152538,2.62026,3816.5,3815.4,2.6209]
[1717279152726,2.62026,3816.5,3816.3,0.704]
[1717279153938,2.62026,3816.5,3815.4,2.6209]
[1717279154160,2.62026,3816.5,3816.3,0.704]
[1717279157151,7.32,3817.0,3816.3,0.704]
[1717279157327,7.32,3817.0,3816.9,0.704]
[1717279158352,2.61965,3817.3,3816.9,0.704]
[1717279158558,2.61965,3817.3,3817.2,0.704]
[1717279158730,2.881615,3817.3,3816.3,2.62028]
[1717279159054,2.4211,3817.2,3817.0,0.704]
[1717279160166,2.4211,3817.2,3816.3,2.62028]
[1717279160465,2.4211,3817.2,3816.9,0.704]
[1717279171679,2.61978,3817.1,3817.0,0.06097409]
[1717279171979,3.123868,3817.1,3817.0,0.06097409]
[1717279172177,3.123868,3817.1,3815.9,2.62055]
[1717279172380,2.61978,3817.1,3816.7,0.704]
[1717279173456,2.4817,3816.7,3816.5,0.704]
[1717279173854,2.4817,3816.7,3816.6,0.06094919]
[1717279174552,2.4817,3816.7,3816.5,0.704]
[1717279174753,2.4817,3816.7,3816.6,0.06094919]
[1717279178994,2.4817,3816.7,3816.6,0.76494919]
[1717279179203,2.4817,3816.7,3816.6,0.704]
[1717279179354,2.4817,3816.7,3816.6,0.76505595]
[1717279179996,2.62002,3816.8,3816.6,0.06105595]
[1717279180297,2.62013,3816.6,3816.5,0.704]
[1717279181899,2.62013,3816.6,3815.5,2.62083]
[1717279182057,2.62013,3816.6,3816.3,0.704]
[1717279184868,2.62036,3816.3,3815.5,2.62083]
[1717279185070,2.62036,3816.3,3816.2,0.704]
[1717279185490,2.62036,3816.3,3816.2,0.76509818]
[1717279187564,2.62036,3816.3,3816.2,0.06109818]
[1717279187765,5.10206,3816.3,3816.2,0.76509818]
[1717279187990,5.10206,3816.3,3816.2,0.704]
[1717279188214,5.10206,3816.3,3816.2,0.76509818]
[1717279188497,5.10206,3816.3,3816.2,0.704]
[1717279189865,5.612266,3816.3,3815.3,2.62097]
[1717279190197,5.10206,3816.3,3816.0,0.704]
[1717279190497,5.10206,3816.3,3816.1,0.06120944]
[1717279190873,5.10206,3816.3,3816.0,0.704]
[1717279191059,2.62036,3816.3,3816.0,0.704]
[1717279191266,2.62036,3816.3,3816.2,0.704]
[1717279191662,2.62036,3816.3,3816.2,0.76519888]
[1717279200516,2.4977,3817.2,3816.2,0.76519888]
[1717279200705,2.4977,3817.2,3816.6,0.704]
[1717279200899,2.62006,3816.7,3816.2,0.06119888]
[1717279201102,2.62006,3816.7,3816.3,0.704]
[1717279201103,2.4977,3816.6,3816.3,0.704]
[1717279201305,2.6202,3816.5,3816.3,0.704]
[1717279202015,5.11769,3816.8,3816.3,0.704]
[1717279202178,5.11769,3816.8,3816.5,0.704]
[1717279202920,4.542333,3817.6,3816.7,0.704]
[1717279202921,2.61974,3817.2,3816.7,0.704]
[1717279203256,2.61974,3817.2,3817.1,0.704]
[1717279203725,2.4977,3817.8,3817.1,0.704]
[1717279204020,2.61923,3818.0,3817.6,0.704]
[1717279204897,2.61923,3818.0,3817.8,0.704]
[1717279207030,2.61894,3818.4,3817.8,0.704]
[1717279207235,3.0,3818.3,3818.0,0.704]
[1717279207816,3.0,3818.3,3817.2,2.61966]
[1717279208020,3.835535,3818.3,3818.0,0.704]
[1717279209026,2.61894,3818.4,3818.2,0.704]
[1717279211625,2.61894,3818.4,3817.8,2.4115]
[1717279211853,2.61894,3818.4,3817.2,2.61966]
[1717279212055,2.61894,3818.4,3817.9,0.704]
[1717279213341,2.61894,3818.4,3817.2,2.61966]
[1717279213530,3.154475,3818.4,3817.2,3.122776]
[1717279213731,3.154475,3818.4,3817.9,0.704]
[1717279214512,2.61894,3818.4,3817.9,2.4731]
[1717279214725,2.61894,3818.4,3818.2,0.704]
[1717279217530,2.61894,3818.4,3817.9,2.4731]
[1717279217734,2.61894,3818.4,3818.2,0.704]
[1717279217931,2.61867,3818.8,3818.2,0.704]
[1717279218129,2.61867,3818.8,3818.7,0.704]
[1717279218335,2.61867,3818.8,3818.7,0.7639531]
[1717279218826,2.61867,3818.8,3818.7,0.0599531]
[1717279219242,2.61867,3818.8,3818.5,0.704]
[1717279219542,2.61867,3818.8,3818.6,0.05996364]
[1717279219743,2.61867,3818.8,3818.5,0.704]
[1717279220051,2.61867,3818.8,3818.6,0.05996364]
[1717279220366,2.61867,3818.8,3818.5,0.704]
[1717279220514,2.61867,3818.8,3818.6,0.05996364]
[1717279220709,2.61867,3818.8,3818.5,0.704]
[1717279220912,2.61867,3818.8,3818.6,0.05996364]
[1717279221154,2.61867,3818.8,3818.5,0.704]
[1717279221355,2.61867,3818.8,3818.6,0.05989353]
[1717279221531,2.61867,3818.8,3818.5,0.704]
[1717279221854,2.61867,3818.8,3818.6,0.05989353]
[1717279222214,2.61867,3818.8,3818.3,0.704]
[1717279222654,2.61867,3818.8,3818.4,0.05991462]
[1717279223355,2.61867,3818.8,3818.4,0.704]
[1717279223569,2.61867,3818.8,3818.5,0.05990408]
[1717279223731,2.61867,3818.8,3818.5,0.76390408]
[1717279224753,2.61867,3818.8,3818.5,0.05990408]
[1717279225053,2.61867,3818.8,3818.4,0.704]
[1717279225240,2.61867,3818.8,3818.6,0.05989353]
[1717279225553,2.61867,3818.8,3818.4,0.704]
[1717279225783,2.61867,3818.8,3818.5,0.05990408]
[1717279228358,2.61867,3818.8,3818.6,0.704]
[1717279231167,2.61867,3818.8,3818.7,0.05981898]
[1717279233182,2.61841,3819.2,3818.7,0.05981898]
[1717279233493,2.61841,3819.2,3819.1,0.704]
[1717279236189,0.0107072,3819.5,3819.1,0.704]
[1717279236491,0.0107072,3819.5,3819.4,0.704]
[1717279236700,0.0107072,3819.5,3819.2,0.36718627]
[1717279237008,0.0107072,3819.5,3819.4,0.704]
[1717279237147,0.0107072,3819.5,3819.4,0.76365376]
[1717279237949,0.0107072,3819.5,3819.4,0.05965376]
[1717279238150,0.0107072,3819.5,3819.4,0.704]
[1717279238371,0.0107072,3819.5,3819.4,0.76365376]
[1717279239960,0.0107072,3819.5,3819.4,1.19017935]
[1717279240656,0.0107072,3819.5,3819.4,1.13782217]
[1717279241769,2.61723,3820.9,3819.4,1.13782217]
[1717279241960,2.61723,3820.9,3820.8,0.704]
[1717279242174,2.61723,3820.9,3820.8,0.76294559]
[1717279242389,2.61695,3821.3,3820.8,0.76294559]
[1717279242717,2.61704,3821.1,3821.0,0.704]
[1717279243082,2.61704,3821.1,3819.8,2.61791]
[1717279243277,2.61704,3821.1,3820.8,0.704]
[1717279244574,2.61704,3821.1,3819.8,2.61791]
[1717279244790,2.61704,3821.1,3820.9,0.704]
[1717279244984,2.91443091,3821.1,3820.9,0.704]
[1717279248534,2.91443091,3821.1,3820.7,0.704]
[1717279248739,2.61732,3820.7,3819.8,2.61791]
[1717279248903,2.61732,3820.7,3820.6,0.704]
[1717279249526,2.61732,3820.7,3819.5,2.3065]
[1717279249527,3.110122,3820.7,3819.5,2.3065]
[1717279249708,2.61732,3820.7,3820.2,0.704]
[1717279250252,2.61732,3820.7,3820.3,0.05892211]
[1717279250621,2.61754,3820.4,3819.5,2.3065]
[1717279250920,2.61754,3820.4,3819.6,0.05899586]
[1717279251255,2.61754,3820.4,3819.4,2.61815]
[1717279251256,2.61754,3820.4,3820.0,0.704]
[1717279251605,2.61754,3820.4,3820.1,0.05859294]
[1717279251945,2.61754,3820.4,3820.0,0.704]
[1717279252150,2.61754,3820.4,3820.2,0.05858241]
[1717279252357,2.61754,3820.4,3820.1,0.05859294]
[1717279252552,2.61754,3820.4,3820.0,0.704]
[1717279252710,2.61754,3820.4,3820.2,0.05858241]
[1717279253062,2.88735719,3821.2,3819.0,2.61843]
[1717279253063,2.61775,3820.1,3819.0,2.61843]
[1717279253209,2.61775,3820.1,3819.7,0.704]
[1717279253407,2.61775,3820.1,3819.8,0.05862455]
[1717279253637,2.61775,3820.1,3819.0,4.30743]
[1717279253837,2.61775,3820.1,3819.1,0.673593]
[1717279254111,2.61794,3819.8,3819.1,0.73229133]
[1717279254539,2.61794,3819.8,3819.1,0.05869833]
[1717279258857,2.61816,3819.5,3819.1,0.05869833]
[1717279259207,2.61816,3819.5,3818.6,2.61869]
[1717279259442,2.61816,3819.5,3818.7,0.05688457]
[1717279260250,2.61816,3819.5,3818.8,0.05687402]
[1717279260746,2.61816,3819.5,3818.4,4.30782]
[1717279260964,2.4815,3819.1,3818.9,0.05686348]
[1717279261163,2.4815,3819.1,3817.7,2.3949]
[1717279261164,2.61875,3818.7,3817.8,4.0]
[1717279261531,2.61875,3818.7,3817.9,0.05525413]
[1717279261859,2.61895,3818.4,3817.9,0.05525413]
[1717279262061,0.261875,3818.7,3817.9,0.05525413]
[1717279262062,2.61904,3818.2,3817.9,0.05525413]
[1717279262229,2.61969,3817.3,3816.5,1.689]
[1717279262423,2.61969,3817.3,3816.7,4.0]
[1717279262620,2.61969,3817.3,3816.8,0.05352019]
[1717279263448,2.61969,3817.3,3816.2,4.30937]
[1717279263779,2.61969,3817.3,3816.9,0.05350963]
[1717279263977,2.61969,3817.3,3816.3,0.670427]
[1717279264179,2.61969,3817.3,3816.2,1.689]
[1717279264476,2.61969,3817.3,3816.3,0.05357296]
[1717279269573,2.61938,3817.7,3816.7,1.689]
[1717279269736,2.61938,3817.7,3816.8,0.27481469]
[1717279270550,2.61938,3817.7,3816.8,0.22242019]
[1717279271345,2.61938,3817.7,3816.8,0.2748147]
[1717279271777,2.61938,3817.7,3816.8,0.22242019]
[1717279272276,2.61938,3817.7,3816.8,0.27481472]
[1717279272445,2.61938,3817.7,3816.9,0.19638147]
[1717279272646,2.61938,3817.7,3817.0,0.05395545]
[1717279278186,2.3734,3819.3,3817.0,2.41535545]
[1717279278518,2.61873,3818.7,3818.0,1.689]
[1717279278853,2.61873,3818.7,3818.1,0.0538394]
[1717279282210,2.61844,3819.1,3818.1,2.4152394]
[1717279282372,2.3734,3819.8,3818.3,2.61896]
[1717279282373,2.61813,3819.6,3818.3,2.61896]
[1717279282576,2.61813,3819.6,3818.4,2.19241994]
[1717279282777,2.61813,3819.6,3818.5,2.61878]
[1717279283099,2.61813,3819.6,3818.6,0.05419727]
[1717279284929,2.61813,3819.6,3818.7,2.61868]
[1717279285081,2.61813,3819.6,3818.8,1.689]
[1717279285431,2.3734,3820.3,3819.2,1.689]
[1717279285432,2.61773,3820.1,3819.2,1.689]
[1717279285635,2.61773,3820.1,3819.3,0.05376443]
[1717279285919,2.61773,3820.1,3819.3,2.67201443]
[1717279286149,2.61773,3820.1,3819.6,1.689]
[1717279286350,2.61773,3820.1,3819.7,0.1689]
[1717279286529,2.61773,3820.1,3819.7,0.22262227]
[1717279286940,2.61773,3820.1,3819.7,0.05372227]
[1717279287254,2.61773,3820.1,3819.5,1.689]
[1717279287434,2.61773,3820.1,3819.6,0.05352296]
[1717279288249,2.61773,3820.1,3819.4,1.689]
[1717279288464,2.61773,3820.1,3819.5,0.0535335]
[1717279288614,2.61773,3820.1,3819.6,0.43607835]
[1717279288952,2.61773,3820.1,3819.7,0.05351242]
[1717279292164,2.61749,3820.5,3819.7,0.05351242]
[1717279301492,2.61763,3820.3,3819.7,0.05351242]
[1717279301947,2.61763,3820.3,3819.6,0.43607835]
[1717279302151,2.61763,3820.3,3819.8,0.0513914]
[1717279302380,2.61763,3820.3,3819.7,0.05140194]
[1717279302689,2.61763,3820.3,3819.8,0.0513914]
[1717279302989,2.61763,3820.3,3819.8,0.29187697]
[1717279303291,2.61763,3820.3,3819.9,0.05138087]
[1717279311706,2.61763,3820.3,3820.0,0.704]
[1717279311878,2.61763,3820.3,3820.1,0.05137196]
[1717279312079,2.61763,3820.3,3820.0,0.704]
[1717279312415,2.61763,3820.3,3820.1,0.05137196]
[1717279312782,2.61763,3820.3,3819.6,0.43607835]
[1717279312978,2.61763,3820.3,3819.7,0.704]
[1717279313179,2.61763,3820.3,3819.9,0.704]
[1717279313702,2.61763,3820.3,3820.0,0.0513825]
[1717279314293,2.61763,3820.3,3820.0,0.0013825]
[1717279314494,2.61763,3820.3,3820.0,0.0497053]
[1717279322389,2.61763,3820.3,3819.7,0.704]
[1717279322586,2.61763,3820.3,3820.1,0.0497418]
[1717279322782,2.61778,3820.1,3819.7,0.704]
[1717279323188,2.61778,3820.1,3819.9,0.704]
[1717279323624,2.61778,3820.1,3820.0,0.04975233]
[1717279324134,2.61778,3820.1,3819.8,0.704]
[1717279326226,2.61778,3820.1,3820.0,0.704]
[1717279327221,2.61778,3820.1,3819.9,0.704]
[1717279328134,2.61778,3820.1,3819.2,2.61828]
[1717279328290,2.61778,3820.1,3819.9,0.704]
[1717279334832,2.3333,3820.0,3818.4,0.83288762]
[1717279335034,2.3333,3820.0,3818.9,0.704]
[1717279335328,2.3333,3820.0,3817.5,1.37465981]
[1717279335329,0.704,3819.1,3817.5,1.37465981]
[1717279335492,1.16985068,3819.9,3817.8,0.704]
[1717279335493,2.61885,3818.5,3817.8,0.704]
[1717279335695,2.61885,3818.5,3817.9,0.04022447]
[1717279335896,2.61885,3818.5,3817.8,0.704]
[1717279336114,2.61885,3818.5,3818.0,0.704]
[1717279336314,2.61908,3818.2,3818.0,0.704]
[1717279337298,2.61908,3818.2,3817.3,0.3667792]
[1717279337519,2.61908,3818.2,3817.7,0.704]
[1717279337705,2.61908,3818.2,3817.8,0.04023502]
[1717279337927,2.61908,3818.2,3817.7,0.704]
[1717279338099,2.61908,3818.2,3817.8,0.04023502]
[1717279338300,2.61908,3818.2,3817.7,0.704]
[1717279338561,2.61908,3818.2,3817.8,0.04023502]
[1717279338924,2.61908,3818.2,3817.5,0.704]
[1717279339119,2.61908,3818.2,3817.6,0.04025611]
[1717279339710,2.63703,3819.0,3817.6,0.04025611]
[1717279340023,2.61933,3817.8,3816.9,4.1188]
[1717279340209,2.61933,3817.8,3817.7,0.04024556]
[1717279340412,2.61933,3817.8,3816.9,4.1188]
[1717279340628,2.61933,3817.8,3817.0,0.41188]
[1717279340830,2.61933,3817.8,3817.0,0.45219942]
[1717279344849,2.61933,3817.8,3817.0,0.04031942]
[1717279345054,2.61933,3817.8,3816.7,1.691]
[1717279345350,2.61933,3817.8,3816.8,0.04034053]
[1717279354367,2.61933,3817.8,3817.1,1.691]
[1717279354576,3.0,3818.9,3817.5,4.31048]
[1717279354577,9.5998,3818.6,3817.5,4.31048]
[1717279354732,4.89834,3819.0,3817.7,2.61934]
[1717279354956,4.89834,3819.0,3817.9,1.691]
[1717279355194,2.61854,3819.0,3818.0,2.4813]
[1717279355357,2.61854,3819.0,3818.0,2.52268944]
[1717279356065,2.61854,3819.0,3818.0,5.14183944]
[1717279358460,7.32,3819.1,3818.0,5.14183944]
[1717279358461,7.32,3819.1,3818.3,2.61894]
[1717279358667,2.61825,3819.4,3818.4,0.04119533]
[1717279359705,2.61825,3819.4,3818.9,0.704]
[1717279366696,2.764,3821.0,3818.1,0.73828394]
[1717279366697,2.2798,3820.5,3819.3,0.704]
[1717279366896,2.2798,3820.5,3819.0,2.4813]
[1717279366897,0.95998,3820.4,3819.7,0.704]
[1717279367055,3.95998,3820.4,3819.7,0.704]
[1717279367985,2.61771,3820.2,3819.7,0.704]
[1717279368362,2.61771,3820.2,3819.8,0.04062544]
[1717279368562,0.657769,3820.1,3819.8,0.04062544]
[1717279368762,0.657769,3820.1,3819.7,0.704]
[1717279369066,0.657769,3820.1,3819.8,0.04062544]
[1717279369265,0.657769,3820.1,3819.7,0.704]
[1717279369465,0.657769,3820.1,3819.8,0.04062544]
[1717279369701,0.657769,3820.1,3819.7,0.704]
[1717279369873,0.657769,3820.1,3819.8,0.04062544]
[1717279370193,0.657769,3820.1,3819.7,0.704]
[1717279370399,2.61771,3820.2,3819.7,0.704]
[1717279370599,2.61771,3820.2,3819.8,0.04062544]
[1717279371012,2.61771,3820.2,3819.7,0.704]
[1717279371305,2.61771,3820.2,3819.8,0.04062544]
[1717279371601,2.61771,3820.2,3819.7,0.704]
[1717279372001,2.61771,3820.2,3819.8,0.04062544]
[1717279372369,2.61771,3820.2,3819.7,0.704]
[1717279372688,2.61771,3820.2,3819.8,0.04062544]
[1717279373011,2.61771,3820.2,3819.7,0.704]
[1717279373386,2.61771,3820.2,3819.8,0.04062544]
[1717279373777,2.61771,3820.2,3819.7,0.704]
[1717279374300,2.61771,3820.2,3819.8,0.04062544]
[1717279374499,2.61771,3820.2,3819.7,0.704]
[1717279374677,2.61771,3820.2,3819.8,0.04062544]
[1717279375006,2.61771,3820.2,3819.7,0.704]
[1717279375413,2.61771,3820.2,3819.8,0.04062544]
[1717279375784,2.61771,3820.2,3819.7,0.704]
[1717279376125,2.61771,3820.2,3819.8,0.04062544]
[1717279376271,2.61771,3820.2,3819.7,0.704]
[1717279376471,2.61771,3820.2,3819.8,0.04062544]
[1717279376700,2.61771,3820.2,3819.7,0.704]
[1717279376884,2.61771,3820.2,3819.8,0.04062544]
[1717279377085,2.61771,3820.2,3819.7,0.704]
[1717279377288,2.61771,3820.2,3819.8,0.04035821]
[1717279377469,2.61771,3820.2,3819.7,0.704]
[1717279377670,2.61771,3820.2,3819.8,0.03901976]
[1717279377970,2.61771,3820.2,3819.9,0.704]
[1717279382291,2.61771,3820.2,3819.8,0.704]
[1717279386583,0.261771,3820.1,3818.4,5.61887]
[1717279386787,0.261771,3820.1,3819.1,0.704]
[1717279386788,2.3167,3820.0,3819.1,0.704]
[1717279387222,2.3167,3820.0,3819.2,0.03749968]
[1717279387223,2.61834,3819.3,3819.2,0.03749968]
[1717279387632,2.61834,3819.3,3819.0,0.704]
[1717279387993,2.61834,3819.3,3819.1,0.03622734]
[1717279390616,2.61834,3819.3,3819.1,0.74022734]
[1717279390798,2.61834,3819.3,3819.1,0.704]
[1717279391197,2.61834,3819.3,3819.2,0.03621679]
[1717279391614,2.61834,3819.3,3819.1,0.704]
[1717279391924,2.61834,3819.3,3819.2,0.03621679]
[1717279392118,2.61834,3819.3,3819.1,0.704]
[1717279392511,2.61834,3819.3,3819.2,0.03621679]
[1717279392711,2.61834,3819.3,3819.1,0.704]
[1717279392911,4.93504,3819.3,3819.2,0.03621679]
[1717279393206,2.61851,3819.0,3818.4,0.87247539]
[1717279393407,2.61851,3819.0,3818.2,2.3676]
[1717279393735,2.61851,3819.0,3818.9,0.704]
[1717279394913,2.61851,3819.0,3817.1,3.95088234]
[1717279394914,2.488,3818.9,3817.9,0.704]
[1717279395115,0.704,3818.8,3817.9,0.704]
[1717279395456,2.488,3818.6,3817.7,0.704]
[1717279395841,2.488,3818.6,3817.8,0.03517257]
[1717279396037,2.61905,3818.2,3817.8,0.03517257]
[1717279396442,2.61905,3818.2,3817.7,0.704]
[1717279396943,2.61905,3818.2,3817.8,0.03517257]
[1717279397245,2.61905,3818.2,3817.8,0.704]
[1717279402148,2.61905,3818.2,3817.0,5.61984]
[1717279402351,2.61905,3818.2,3817.9,0.03568446]
[1717279402551,2.61905,3818.2,3817.8,0.704]
[1717279403048,2.61905,3818.2,3817.1,0.805234]
[1717279403255,2.61905,3818.2,3817.7,0.704]
[1717279403555,2.61905,3818.2,3817.8,0.03569501]
[1717279403754,2.61905,3818.2,3817.7,0.704]
[1717279404049,2.61905,3818.2,3817.9,0.03568446]